bitfinex-derivatives/quotes_BTCF0:USTF0_20240925
["timestamp","ask_amount","ask_price","bid_price","bid_amount"]
[1727278069792,0.68810739,63927.0,63926.0,0.0024]
[1727278071599,0.52810739,63927.0,63926.0,0.0024]
[1727278071895,0.68810739,63927.0,63926.0,0.0024]
[1727278072098,0.68810739,63927.0,63917.0,0.0036]
[1727278072099,0.078229,63920.0,63917.0,0.0036]
[1727278072402,0.078229,63920.0,63919.0,0.078227]
[1727278072599,0.3608,63921.0,63910.0,0.0036]
[1727278072901,0.439432,63915.0,63913.0,0.078234]
[1727278073095,0.439432,63915.0,63911.0,0.078237]
[1727278073293,0.078236,63912.0,63911.0,0.078237]
[1727278073500,0.238636,63912.0,63911.0,0.078237]
[1727278074002,0.078636,63912.0,63911.0,0.078237]
[1727278074197,0.238636,63912.0,63911.0,0.078237]
[1727278074706,0.078636,63912.0,63911.0,0.078237]
[1727278076602,0.078636,63912.0,63911.0,0.080237]
[1727278077501,0.156872,63912.0,63911.0,0.002]
[1727278077692,0.316872,63912.0,63911.0,0.002]
[1727278078590,0.156872,63912.0,63911.0,0.002]
[1727278078790,0.316872,63912.0,63911.0,0.002]
[1727278078992,0.316872,63912.0,63911.0,0.001]
[1727278079197,0.316872,63912.0,63911.0,0.002]
[1727278079799,0.316872,63912.0,63911.0,0.001]
[1727278080007,0.238636,63912.0,63911.0,0.002]
[1727278080199,0.238636,63912.0,63911.0,0.001]
[1727278080401,0.078636,63912.0,63911.0,0.080237]
[1727278081804,0.078636,63912.0,63911.0,0.002]
[1727278082008,0.078636,63912.0,63911.0,0.001]
[1727278082214,0.078636,63912.0,63911.0,0.002]
[1727278082505,0.078636,63912.0,63911.0,0.001]
[1727278082708,0.078636,63912.0,63911.0,0.002]
[1727278082908,0.156872,63912.0,63911.0,0.002]
[1727278083111,0.156872,63912.0,63911.0,0.001]
[1727278083112,0.078636,63912.0,63911.0,0.001]
[1727278083312,0.078636,63912.0,63911.0,0.002]
[1727278083705,0.078237,63911.0,63910.0,0.078238]
[1727278083916,0.078637,63911.0,63910.0,0.078238]
[1727278084212,0.238637,63911.0,63910.0,0.078238]
[1727278086205,0.238637,63911.0,63910.0,0.079238]
[1727278086423,0.238637,63911.0,63910.0,0.080238]
[1727278087501,0.078637,63911.0,63910.0,0.080238]
[1727278087707,0.078637,63911.0,63910.0,0.12689329]
[1727278088015,0.078637,63911.0,63910.0,0.12703456]
[1727278088217,0.0004,63911.0,63910.0,0.080238]
[1727278088512,0.0004,63911.0,63910.0,0.157476]
[1727278088809,0.0004,63911.0,63910.0,0.866114]
[1727278089005,0.3644,63920.0,63919.0,0.078227]
[1727278089206,0.439026,63920.0,63919.0,0.078227]
[1727278089406,0.68801097,63920.0,63919.0,0.0004]
[1727278090117,0.60978497,63920.0,63919.0,0.0004]
[1727278090503,0.60978497,63920.0,63919.0,0.078627]
[1727278090504,0.3608,63920.0,63919.0,0.078627]
[1727278091109,0.078223,63923.0,63922.0,0.078222]
[1727278091311,0.3608,63926.0,63925.0,0.07822]
[1727278091523,0.3608,63926.0,63925.0,0.07862]
[1727278092316,0.3608,63926.0,63925.0,0.07822]
[1727278092804,0.3608,63926.0,63925.0,0.07922]
[1727278093413,0.3608,63926.0,63925.0,0.08022]
[1727278099516,0.599019,63926.0,63925.0,0.08022]
[1727278099920,0.439019,63926.0,63925.0,0.002]
[1727278100124,0.599019,63926.0,63925.0,0.002]
[1727278100818,0.677238,63926.0,63925.0,0.002]
[1727278101019,0.517238,63926.0,63925.0,0.002]
[1727278101208,0.156446,63923.0,63922.0,0.0004]
[1727278101407,0.156846,63923.0,63922.0,0.0004]
[1727278102426,0.156846,63923.0,63922.0,0.0014]
[1727278102626,0.156846,63923.0,63922.0,0.0024]
[1727278103412,0.316846,63923.0,63922.0,0.0024]
[1727278103624,0.316846,63923.0,63915.0,0.0036]
[1727278103625,0.078231,63916.0,63915.0,0.0036]
[1727278103821,0.078235,63913.0,63912.0,0.40758093]
[1727278104011,0.078235,63913.0,63910.0,0.04678093]
[1727278104223,0.1604,63911.0,63910.0,0.04678093]
[1727278104414,0.078238,63910.0,63909.0,0.04678093]
[1727278104614,0.078638,63910.0,63909.0,0.12502093]
[1727278104913,0.078635,63913.0,63909.0,0.12502093]
[1727278105110,0.078635,63913.0,63908.0,0.04678093]
[1727278105111,0.599038,63910.0,63908.0,0.04678093]
[1727278105320,0.156486,63906.0,63905.0,0.04678093]
[1727278105525,0.156486,63906.0,63902.0,0.06237458]
[1727278105526,0.078247,63903.0,63902.0,0.04678093]
[1727278105723,0.0004,63903.0,63897.0,0.078253]
[1727278106022,0.3608,63904.0,63896.0,0.04679611]
[1727278106023,0.078254,63897.0,63896.0,0.04679611]
[1727278106322,0.078254,63897.0,63895.0,0.078256]
[1727278106626,0.0004,63896.0,63895.0,0.078256]
[1727278113826,0.078656,63896.0,63895.0,0.078256]
[1727278114928,0.238656,63896.0,63895.0,0.078256]
[1727278115316,0.078656,63896.0,63895.0,0.078256]
[1727278115517,0.238656,63896.0,63895.0,0.078256]
[1727278115718,0.078656,63896.0,63895.0,0.078256]
[1727278117525,0.238656,63896.0,63895.0,0.078256]
[1727278119028,0.078656,63896.0,63895.0,0.078256]
[1727278119429,0.238656,63896.0,63895.0,0.078256]
[1727278119935,0.078263,63891.0,63890.0,0.078263]
[1727278120134,0.1604,63891.0,63886.0,0.57670146]
[1727278120330,0.0004,63887.0,63886.0,0.58665484]
[1727278120631,0.0004,63891.0,63886.0,0.40759611]
[1727278120831,0.3608,63888.0,63879.0,0.05628811]
[1727278121033,0.5212,63880.0,63879.0,0.006]
[1727278121231,0.3612,63880.0,63879.0,0.006]
[1727278121420,0.5142,63880.0,63879.0,0.006]
[1727278121625,0.5138,63880.0,63872.0,0.0036]
[1727278121824,0.5208,63873.0,63868.0,0.0036]
[1727278122032,0.0004,63869.0,63863.0,0.0036]
[1727278122236,0.16,63864.0,63862.0,0.01075912]
[1727278122438,0.0004,63863.0,63858.0,0.0325]
[1727278122738,0.3608,63866.0,63858.0,0.0325]
[1727278122739,0.1604,63861.0,63858.0,0.0325]
[1727278122940,0.0004,63861.0,63858.0,0.0325]
[1727278123432,0.1474,63862.0,63858.0,0.0325]
[1727278123966,0.1474,63862.0,63861.0,0.0004]
[1727278124135,0.15213215,63862.0,63861.0,0.0004]
[1727278124831,0.15313215,63862.0,63861.0,0.0004]
[1727278125025,0.15313215,63862.0,63861.0,0.0076]
[1727278125242,0.01173215,63862.0,63861.0,0.0076]
[1727278125535,0.01173215,63862.0,63861.0,0.0126]
[1727278125923,0.002,63862.0,63861.0,0.0236]
[1727278131736,0.601,63862.0,63861.0,0.0166]
[1727278131941,0.601,63862.0,63855.0,0.0036]
[1727278131942,1.07076,63862.0,63855.0,0.0036]
[1727278132129,1.07076,63862.0,63851.0,0.0023491]
[1727278132130,0.5216,63856.0,63851.0,0.0023491]
[1727278132332,0.1608,63852.0,63851.0,0.0023491]
[1727278132531,0.16,63852.0,63851.0,0.0023491]
[1727278133135,0.15,63852.0,63851.0,0.0023491]
[1727278134439,0.151,63852.0,63851.0,0.0023491]
[1727278134632,0.151,63852.0,63845.0,0.0036]
[1727278134633,0.16178938,63852.0,63845.0,0.0036]
[1727278134835,0.0008,63846.0,63844.0,0.07868811]
[1727278135138,0.16,63847.0,63844.0,0.032]
[1727278135344,0.16,63851.0,63844.0,0.0328]
[1727278135830,0.01278938,63852.0,63844.0,0.0328]
[1727278136036,0.16,63848.0,63844.0,0.0328]
[1727278136242,0.162,63852.0,63844.0,0.0328]
[1727278136538,0.001,63851.0,63844.0,0.0328]
[1727278136943,0.001,63846.0,63844.0,0.0328]
[1727278137640,0.001,63851.0,63844.0,0.0328]
[1727278138038,0.16,63848.0,63844.0,0.0328]
[1727278138350,0.001,63846.0,63844.0,0.0328]
[1727278139142,0.16,63848.0,63844.0,0.0328]
[1727278139638,0.001,63846.0,63844.0,0.0328]
[1727278140547,0.002,63848.0,63844.0,0.0328]
[1727278140847,0.002,63848.0,63847.0,0.0004]
[1727278141140,0.001,63848.0,63847.0,0.0004]
[1727278141733,0.002,63848.0,63847.0,0.0004]
[1727278142433,0.002,63848.0,63847.0,0.1604]
[1727278142751,0.001,63848.0,63847.0,0.1604]
[1727278143042,0.001,63848.0,63847.0,0.0004]
[1727278143547,0.002,63848.0,63847.0,0.0004]
[1727278143933,0.002,63848.0,63847.0,0.0024]
[1727278147243,0.002,63848.0,63847.0,0.06477458]
[1727278148046,0.002,63848.0,63847.0,0.0024]
[1727278149437,0.162,63848.0,63843.0,0.04674172]
[1727278149754,0.16,63843.0,63838.0,0.06232181]
[1727278150049,0.1608,63839.0,63833.0,0.06592181]
[1727278150344,0.3608,63836.0,63835.0,0.06242574]
[1727278150550,0.3598,63836.0,63835.0,0.06242574]
[1727278150754,0.5198,63836.0,63834.0,0.06242574]
[1727278150948,0.5198,63836.0,63831.0,0.08029933]
[1727278150949,0.0008,63835.0,63832.0,0.07794956]
[1727278151148,0.3606,63836.0,63834.0,0.07794956]
[1727278151345,0.5198,63836.0,63834.0,0.07794956]
[1727278151744,0.5198,63836.0,63833.0,0.001]
[1727278151745,0.5198,63836.0,63835.0,0.17270953]
[1727278152254,0.5198,63836.0,63835.0,0.17281729]
[1727278152754,0.5208,63836.0,63835.0,0.172732]
[1727278152963,0.5218,63836.0,63835.0,0.172732]
[1727278153754,0.5218,63836.0,63835.0,0.17273594]
[1727278153969,0.5218,63836.0,63835.0,0.09467862]
[1727278154261,0.5218,63836.0,63835.0,0.1727184]
[1727278154554,0.5218,63836.0,63835.0,0.09467862]
[1727278154852,0.3618,63836.0,63835.0,0.56463862]
[1727278155058,0.31477671,63836.0,63835.0,0.18818779]
[1727278155555,0.31477671,63836.0,63835.0,0.65814779]
[1727278155744,0.31477671,63836.0,63835.0,0.6582873]
[1727278155948,0.31477671,63836.0,63835.0,0.56463862]
[1727278156148,0.1636,63843.0,63835.0,1.03768305]
[1727278156344,0.3608,63844.0,63839.0,0.09365656]
[1727278156554,0.3608,63844.0,63842.0,0.09365656]
[1727278156754,0.3608,63844.0,63843.0,0.09467862]
[1727278157457,0.5208,63844.0,63843.0,0.09467862]
[1727278157661,0.5218,63844.0,63843.0,0.09467862]
[1727278157964,0.8826,63844.0,63839.0,0.06246369]
[1727278158261,0.8826,63844.0,63834.0,0.0036]
[1727278158262,0.1604,63840.0,63834.0,0.07807961]
[1727278158456,0.16,63835.0,63834.0,0.07807961]
[1727278158765,0.1604,63835.0,63834.0,0.17239418]
[1727278158952,0.16,63835.0,63834.0,0.17249371]
[1727278159147,0.16,63835.0,63834.0,0.09440639]
[1727278160361,0.161,63835.0,63834.0,0.09440639]
[1727278160564,0.162,63835.0,63834.0,0.078092]
[1727278160756,0.162,63835.0,63833.0,0.078092]
[1727278161060,0.162,63835.0,63832.0,0.0008]
[1727278161061,0.162,63835.0,63834.0,0.078092]
[1727278161255,0.162,63835.0,63834.0,0.17247805]
[1727278161557,0.162,63835.0,63834.0,0.17248314]
[1727278161859,0.162,63835.0,63834.0,0.09434376]
[1727278161860,0.002,63835.0,63834.0,0.09434376]
[1727278162954,0.002,63835.0,63834.0,0.26913807]
[1727278163152,0.002,63835.0,63834.0,0.26917668]
[1727278164258,0.002,63835.0,63834.0,0.28011151]
[1727278164968,0.0004,63840.0,63834.0,1.52264728]
[1727278165171,0.0036,63843.0,63839.0,0.5208]
[1727278165463,0.01103094,63852.0,63839.0,0.5208]
[1727278165464,0.0036,63847.0,63842.0,0.09371375]
[1727278165760,0.16,63849.0,63844.0,0.0004]
[1727278165956,0.16,63849.0,63844.0,0.09434376]
[1727278166159,0.5208,63845.0,63844.0,0.09434376]
[1727278166463,0.5208,63845.0,63844.0,0.09403999]
[1727278167066,0.3618,63845.0,63844.0,0.09403999]
[1727278167367,0.3618,63845.0,63844.0,0.18775374]
[1727278167668,0.001,63845.0,63844.0,0.18775374]
[1727278167854,0.001,63845.0,63844.0,0.18776148]
[1727278168479,0.001,63845.0,63844.0,0.18776552]
[1727278168664,0.001,63845.0,63844.0,0.09403999]
[1727278168858,0.001,63845.0,63844.0,0.18776611]
[1727278170761,0.001,63845.0,63844.0,0.09403999]
[1727278171270,0.001,63845.0,63844.0,0.18773355]
[1727278171464,0.001,63845.0,63844.0,0.09400743]
[1727278171859,0.001,63845.0,63844.0,0.18774278]
[1727278172062,0.001,63845.0,63844.0,0.09400743]
[1727278172570,0.161,63845.0,63844.0,0.1877472]
[1727278172761,0.161,63845.0,63844.0,0.09400743]
[1727278174159,0.161,63845.0,63843.0,0.0781279]
[1727278174360,0.0004,63844.0,63843.0,0.0781279]
[1727278175963,0.0014,63844.0,63843.0,0.0781279]
[1727278176259,0.0024,63844.0,63840.0,0.0312]
[1727278176465,0.0024,63844.0,63840.0,0.392]
[1727278176663,0.0024,63844.0,63843.0,0.09412847]
[1727278176961,0.002,63844.0,63843.0,0.09412847]
[1727278178164,0.002,63844.0,63840.0,0.392]
[1727278178365,0.0004,63841.0,63840.0,0.392]
[1727278179578,0.0004,63841.0,63840.0,0.0312]
[1727278179876,0.0024,63841.0,63840.0,0.0312]
[1727278180075,0.0024,63841.0,63839.0,0.3612]
[1727278180270,0.0004,63840.0,63839.0,0.0004]
[1727278181579,0.0004,63840.0,63839.0,0.09461744]
[1727278182170,0.0024,63840.0,63839.0,0.09461744]
[1727278182372,0.16,63847.0,63839.0,0.18840471]
[1727278182575,0.16,63847.0,63846.0,0.0004]
[1727278183275,0.16,63847.0,63846.0,0.06294099]
[1727278183475,0.16,63847.0,63846.0,0.0004]
[1727278183885,0.161,63847.0,63846.0,0.0004]
[1727278184565,0.162,63847.0,63846.0,0.0004]
[1727278185378,0.161,63847.0,63846.0,0.0004]
[1727278185578,0.161,63847.0,63846.0,0.0014]
[1727278188382,0.161,63847.0,63846.0,0.06394099]
[1727278188965,0.161,63847.0,63846.0,0.0014]
[1727278189188,0.161,63847.0,63846.0,0.06394099]
[1727278189477,0.161,63847.0,63846.0,0.0014]
[1727278189681,0.001,63847.0,63846.0,0.0014]
[1727278189872,0.161,63847.0,63846.0,0.0014]
[1727278190272,0.161,63847.0,63846.0,0.06394099]
[1727278190876,0.161,63847.0,63846.0,0.0014]
[1727278191481,0.001,63847.0,63846.0,0.0014]
[1727278191675,0.161,63847.0,63846.0,0.0014]
[1727278192586,0.001,63847.0,63846.0,0.0014]
[1727278192879,0.161,63847.0,63846.0,0.0014]
[1727278193083,0.63088,63847.0,63846.0,0.06400046]
[1727278193276,0.63088,63847.0,63845.0,0.06260046]
[1727278193478,0.63088,63847.0,63843.0,0.06260046]
[1727278193479,0.0004,63846.0,63843.0,0.06260046]
[1727278193791,0.1604,63844.0,63843.0,0.06260046]
[1727278194178,0.0004,63846.0,63842.0,0.06260046]
[1727278194479,0.1604,63843.0,63842.0,0.06260046]
[1727278195384,0.1604,63843.0,63842.0,0.07816405]
[1727278195583,0.1604,63843.0,63842.0,0.001]
[1727278195584,0.1594,63843.0,63842.0,0.001]
[1727278195781,0.16,63843.0,63842.0,0.001]
[1727278195979,0.0004,63846.0,63842.0,0.001]
[1727278196176,0.0004,63846.0,63844.0,0.06258153]
[1727278196389,0.0004,63846.0,63845.0,0.0004]
[1727278196682,0.1604,63846.0,63845.0,0.0004]
[1727278196875,0.16,63846.0,63845.0,0.0004]
[1727278198878,0.162,63846.0,63845.0,0.0004]
[1727278199081,0.002,63846.0,63845.0,0.0004]
[1727278199280,0.162,63846.0,63845.0,0.0004]
[1727278200278,0.236951,63846.0,63845.0,0.0004]
[1727278200472,0.4593674,63846.0,63845.0,0.0004]
[1727278200873,0.396951,63846.0,63845.0,0.0004]
[1727278201075,0.236951,63846.0,63845.0,0.0004]
[1727278201282,0.156646,63841.0,63840.0,0.06258153]
[1727278201476,0.156648,63840.0,63839.0,0.06258153]
[1727278201680,0.249548,63840.0,63839.0,0.06258153]
[1727278201894,0.249948,63840.0,63839.0,0.06258153]
[1727278202189,0.249548,63840.0,63839.0,0.06258153]
[1727278202382,0.15665,63839.0,63838.0,0.002]
[1727278202887,0.15705,63839.0,63838.0,0.002]
[1727278203195,0.15705,63839.0,63831.0,0.0036]
[1727278203196,0.078334,63832.0,63831.0,0.0036]
[1727278203488,0.078335,63831.0,63820.0,0.09378727]
[1727278203686,0.439146,63822.0,63821.0,0.078347]
[1727278203987,0.599146,63822.0,63821.0,0.09304754]
[1727278204179,0.5208,63822.0,63818.0,0.00235044]
[1727278204374,0.599146,63822.0,63821.0,0.078348]
[1727278204574,0.07915,63819.0,63818.0,0.08070144]
[1727278204789,0.07995,63819.0,63818.0,0.1736524]
[1727278205282,0.07915,63819.0,63818.0,0.08070144]
[1727278205489,0.23915,63819.0,63818.0,0.08070144]
[1727278206076,0.24015,63819.0,63818.0,0.08070144]
[1727278206685,0.25174919,63819.0,63818.0,0.08070144]
[1727278207389,0.078354,63816.0,63815.0,0.078355]
[1727278207576,0.239154,63816.0,63815.0,0.078355]
[1727278207978,0.0008,63816.0,63815.0,0.078355]
[1727278209088,0.0018,63816.0,63815.0,0.078355]
[1727278209781,0.0028,63816.0,63815.0,0.078355]
[1727278211087,0.0028,63816.0,63814.0,0.0317]
[1727278211088,0.078355,63815.0,63814.0,0.0317]
[1727278211301,0.239155,63815.0,63814.0,0.0317]
[1727278211675,0.239155,63815.0,63810.0,0.36168]
[1727278211997,0.16,63811.0,63810.0,0.3608]
[1727278212189,0.1608,63811.0,63810.0,0.3608]
[1727278212582,0.07916,63811.0,63810.0,0.439161]
[1727278212985,0.0008,63811.0,63810.0,0.439161]
[1727278213291,0.0008,63811.0,63804.0,0.00088]
[1727278213292,0.156734,63805.0,63804.0,0.00088]
[1727278213494,0.156734,63805.0,63795.0,0.439179]
[1727278213495,0.3608,63805.0,63795.0,0.439179]
[1727278213788,0.3608,63805.0,63793.0,0.0301]
[1727278213789,0.16,63798.0,63793.0,0.0301]
[1727278213979,0.0008,63794.0,63793.0,0.108481]
[1727278214179,0.16,63798.0,63797.0,0.078377]
[1727278214991,0.161,63798.0,63797.0,0.078377]
[1727278215682,0.078376,63799.0,63797.0,0.078377]
[1727278215883,0.078376,63799.0,63793.0,0.0301]
[1727278215884,0.078376,63799.0,63798.0,0.078376]
[1727278216694,0.078369,63804.0,63797.0,0.3608]
[1727278216893,0.0008,63798.0,63797.0,0.439177]
[1727278217101,0.3608,63805.0,63795.0,0.16]
[1727278217284,0.078364,63808.0,63807.0,0.078364]
[1727278217485,0.3608,63811.0,63806.0,0.16]
[1727278217684,0.0008,63807.0,63806.0,0.16]
[1727278217989,0.0008,63807.0,63806.0,0.078366]
[1727278218493,0.3608,63811.0,63810.0,0.078361]
[1727278218893,0.01084841,63815.0,63814.0,0.078356]
[1727278219189,0.078359,63812.0,63809.0,0.078361]
[1727278219391,0.1608,63810.0,63806.0,0.001]
[1727278219581,0.0008,63807.0,63806.0,0.001]
[1727278219889,0.0008,63810.0,63809.0,0.078362]
[1727278221787,0.0028,63810.0,63809.0,0.078362]
[1727278222897,0.0018,63810.0,63809.0,0.078362]
[1727278227987,0.080161,63810.0,63809.0,0.078362]
[1727278228387,0.087161,63810.0,63809.0,0.078362]
[1727278228599,0.078367,63807.0,63806.0,0.078366]
[1727278229005,0.078767,63807.0,63806.0,0.078366]
[1727278229184,0.0004,63807.0,63806.0,0.078366]
[1727278230290,0.0094,63807.0,63806.0,0.078366]
[1727278231093,0.100765,63807.0,63806.0,0.078366]
[1727278231296,0.260765,63807.0,63806.0,0.078366]
[1727278231488,0.0224,63807.0,63803.0,0.078369]
[1727278231693,0.078768,63804.0,63803.0,0.078369]
[1727278231892,0.07837,63803.0,63802.0,0.0016]
[1727278232098,0.23877,63803.0,63802.0,0.0016]
[1727278232906,0.07877,63803.0,63802.0,0.079971]
[1727278233198,0.0004,63803.0,63802.0,0.079971]
[1727278233397,0.0084,63803.0,63802.0,0.079971]
[1727278234099,0.0084,63803.0,63802.0,0.706913]
[1727278234303,0.0008,63810.0,63809.0,0.078362]
[1727278234606,0.0008,63810.0,63809.0,0.078762]
[1727278235498,0.092361,63810.0,63809.0,0.078762]
[1727278236903,0.106361,63810.0,63809.0,0.079762]
[1727278237090,0.028,63810.0,63809.0,0.079762]
[1727278243407,0.344722,63810.0,63809.0,0.0014]
[1727278243802,0.484383,63810.0,63809.0,0.0014]
[1727278244399,1.554543,63810.0,63809.0,0.0014]
[1727278246206,0.07837,63803.0,63802.0,0.002]
[1727278246512,0.59957,63803.0,63802.0,0.002]
[1727278247403,0.59957,63803.0,63802.0,0.003]
[1727278247603,0.69394,63803.0,63802.0,0.004]
[1727278249216,0.69694,63803.0,63802.0,0.004]
[1727278249412,0.69994,63803.0,63802.0,0.004]
[1727278250603,0.46157,63803.0,63802.0,0.082371]
[1727278250903,0.10077,63803.0,63802.0,0.082371]
[1727278251105,0.0224,63803.0,63802.0,0.242371]
[1727278251310,0.0224,63803.0,63802.0,0.3681558]
[1727278251511,0.078363,63809.0,63808.0,0.078363]
[1727278251709,0.078363,63809.0,63808.0,0.078763]
[1727278253020,0.092363,63809.0,63808.0,0.079763]
[1727278253403,0.106363,63809.0,63808.0,0.080763]
[1727278255420,0.106363,63809.0,63808.0,0.0024]
[1727278256328,0.545526,63809.0,63808.0,0.0024]
[1727278258315,0.60808228,63809.0,63808.0,0.0024]
[1727278259223,0.545526,63809.0,63808.0,0.0024]
[1727278259620,0.467163,63809.0,63808.0,0.080764]
[1727278260022,0.52974838,63809.0,63808.0,0.080764]
[1727278260413,0.467163,63809.0,63808.0,0.080764]
[1727278260818,0.3888,63809.0,63808.0,0.080764]
[1727278261515,0.467162,63809.0,63808.0,0.080764]
[1727278262524,0.627162,63809.0,63808.0,0.0024]
[1727278263918,0.627162,63809.0,63808.0,0.06500247]
[1727278264119,0.467162,63809.0,63808.0,0.0024]
[1727278264620,0.467162,63809.0,63808.0,0.06500611]
[1727278264930,0.467162,63809.0,63808.0,0.0024]
[1727278267615,0.627162,63809.0,63808.0,0.0024]
[1727278268727,0.467162,63809.0,63808.0,0.0024]
[1727278270019,0.3888,63809.0,63808.0,0.080764]
[1727278270416,0.3888,63809.0,63808.0,0.17354234]
[1727278270622,0.3888,63809.0,63808.0,0.15903414]
[1727278271124,0.3888,63809.0,63808.0,0.080764]
[1727278271319,0.3888,63809.0,63808.0,0.15903414]
[1727278271523,0.3888,63809.0,63808.0,0.080764]
[1727278273322,0.3888,63809.0,63808.0,0.15903414]
[1727278273527,0.3888,63809.0,63808.0,0.080764]
[1727278274049,0.467162,63809.0,63808.0,0.080764]
[1727278274423,0.3888,63809.0,63808.0,0.080764]
[1727278276026,0.467162,63809.0,63808.0,0.080764]
[1727278276227,0.3888,63809.0,63808.0,0.080764]
[1727278277431,0.3888,63809.0,63808.0,0.15903414]
[1727278277625,0.3888,63809.0,63808.0,0.25172225]
[1727278277831,0.3858,63809.0,63808.0,0.25172225]
[1727278278340,0.3858,63809.0,63808.0,0.17345211]
[1727278278636,0.3788,63809.0,63808.0,0.17345211]
[1727278279434,0.017,63809.0,63808.0,0.17345211]
[1727278279618,0.017,63809.0,63808.0,0.26723938]
[1727278279824,0.017,63809.0,63808.0,0.17345211]
[1727278280122,0.017,63809.0,63808.0,0.28358783]
[1727278280531,0.017,63809.0,63808.0,0.28362164]
[1727278281030,0.017,63809.0,63808.0,0.36198564]
[1727278281240,0.0036,63818.0,63808.0,0.36198564]
[1727278281241,0.0036,63818.0,63817.0,0.078352]
[1727278281540,0.3616,63821.0,63820.0,0.078349]
[1727278281732,0.3608,63821.0,63820.0,0.078749]
[1727278281923,0.3608,63821.0,63818.0,0.07827518]
[1727278282121,0.078351,63818.0,63817.0,0.07867518]
[1727278282321,0.324102,63818.0,63817.0,0.07967518]
[1727278282536,0.418902,63818.0,63817.0,0.0014]
[1727278282832,0.337253,63818.0,63817.0,0.0024]
[1727278283032,0.497253,63818.0,63817.0,0.0024]
[1727278283233,0.490253,63818.0,63817.0,0.0014]
[1727278285025,0.490253,63818.0,63817.0,0.0024]
[1727278285628,0.5156595,63818.0,63817.0,0.0024]
[1727278286031,0.490253,63818.0,63817.0,0.0024]
[1727278286232,0.56853028,63818.0,63817.0,0.0024]
[1727278286426,0.07867728,63819.0,63817.0,0.0024]
[1727278286636,0.07867728,63819.0,63818.0,0.078751]
[1727278286637,0.06301863,63819.0,63818.0,0.078751]
[1727278286831,0.0004,63819.0,63818.0,0.12571484]
[1727278287035,0.0004,63819.0,63818.0,0.12569886]
[1727278287238,0.07875,63819.0,63818.0,0.12569886]
[1727278287427,0.23875,63819.0,63818.0,0.04734786]
[1727278287632,0.3171,63819.0,63818.0,0.0004]
[1727278288026,0.39637728,63819.0,63818.0,0.0004]
[1727278288225,0.3181,63819.0,63818.0,0.0004]
[1727278288428,0.34350537,63819.0,63818.0,0.0004]
[1727278288831,0.34350537,63819.0,63818.0,0.0014]
[1727278289132,0.34350537,63819.0,63818.0,0.0024]
[1727278289329,0.34350535,63819.0,63818.0,0.0024]
[1727278290334,0.3963728,63819.0,63818.0,0.0024]
[1727278291029,0.2363728,63819.0,63818.0,0.0024]
[1727278291232,0.07975,63819.0,63818.0,0.080751]
[1727278292138,0.14237316,63819.0,63818.0,0.080751]
[1727278292635,0.07975,63819.0,63818.0,0.080751]
[1727278293240,0.14237316,63819.0,63818.0,0.080751]
[1727278293442,0.14237316,63819.0,63818.0,0.12769886]
[1727278293741,0.07975,63819.0,63818.0,0.080751]
[1727278294545,0.0014,63819.0,63818.0,0.080751]
[1727278295945,0.0014,63819.0,63818.0,0.110951]
[1727278299646,0.07975,63819.0,63818.0,0.0024]
[1727278299850,0.07975,63819.0,63818.0,0.0650146]
[1727278300246,0.07975,63819.0,63818.0,0.0024]
[1727278300452,0.23975,63819.0,63818.0,0.0024]
[1727278302149,0.3181,63819.0,63818.0,0.0024]
[1727278302445,0.3181,63819.0,63818.0,0.080751]
[1727278302645,0.3181,63819.0,63818.0,0.12771295]
[1727278303234,0.1581,63819.0,63818.0,0.12771295]
[1727278305039,0.1581,63819.0,63818.0,0.080751]
[1727278306058,0.07975,63819.0,63818.0,0.080751]
[1727278306442,0.0014,63819.0,63818.0,0.080751]
[1727278306840,0.0036,63825.0,63824.0,0.078344]
[1727278307042,0.07834,63828.0,63824.0,0.078344]
[1727278307043,0.07834,63828.0,63827.0,0.07834]
[1727278307254,0.07834,63828.0,63827.0,0.07874]
[1727278308744,0.07934,63828.0,63827.0,0.07974]
[1727278309347,0.07934,63828.0,63827.0,0.08074]
[1727278310250,0.001,63828.0,63827.0,0.08074]
[1727278310550,0.001,63828.0,63827.0,0.0024]
[1727278310754,0.09011406,63828.0,63827.0,0.0024]
[1727278311060,0.16845306,63828.0,63827.0,0.0024]
[1727278311248,0.23195306,63828.0,63827.0,0.0024]
[1727278311957,0.23095306,63828.0,63827.0,0.0024]
[1727278312342,0.23095306,63828.0,63827.0,0.0034]
[1727278313555,0.23095306,63828.0,63827.0,0.0024]
[1727278313853,0.08911406,63828.0,63827.0,0.08074]
[1727278314453,0.16745306,63828.0,63827.0,0.0024]
[1727278314862,0.15166453,63828.0,63827.0,0.0024]
[1727278315257,0.23000353,63828.0,63827.0,0.0024]
[1727278315759,0.15166453,63828.0,63827.0,0.0024]
[1727278315961,0.15166453,63828.0,63827.0,0.0014]
[1727278316260,0.23000353,63828.0,63827.0,0.0024]
[1727278316651,0.16745306,63828.0,63827.0,0.0024]
[1727278318946,0.52825306,63828.0,63827.0,0.0024]
[1727278320358,0.99825306,63828.0,63827.0,0.0024]
[1727278320662,0.156698,63820.0,63819.0,0.0036]
[1727278320872,0.078351,63818.0,63817.0,0.04732145]
[1727278321158,0.157102,63818.0,63817.0,0.04732145]
[1727278321465,0.156702,63818.0,63817.0,0.0004]
[1727278321762,0.156704,63817.0,63816.0,0.04692145]
[1727278321963,0.156708,63816.0,63815.0,0.04692145]
[1727278322177,0.22295814,63816.0,63812.0,0.06257592]
[1727278322464,0.22295814,63816.0,63811.0,0.06257592]